[Event "GrandPrix_29.05"]
[Site "Chess.com"]
[Date "2020.05.29"]
[Round "1"]
[White "Pierluigi15"]
[Black "Frozygul"]
[Result "1-0"]
[WhiteElo "2647"]
[BlackElo "2172"]
[TimeControl "600+2"]
[EndTime "9:16:35 PDT"]
[Termination "Pierluigi15 won by resignation"]

1. d4 {[%clk 0:09:46.9]} 1... d5 {[%clk 0:10:00.5]} 2. c4 {[%clk 0:09:47.2]}
2... dxc4 {[%clk 0:10:02.4]} 3. Nf3 {[%clk 0:09:40.1]} 3... Nf6 {[%clk
0:10:02.3]} 4. e3 {[%clk 0:09:40.9]} 4... e6 {[%clk 0:10:03.7]} 5. Bxc4 {[%clk
0:09:41.3]} 5... a6 {[%clk 0:10:05.6]} 6. O-O {[%clk 0:09:31.2]} 6... b5 {[%clk
0:10:06.3]} 7. Be2 {[%clk 0:09:32]} 7... Bb7 {[%clk 0:10:08.2]} 8. a4 {[%clk
0:09:01.9]} 8... b4 {[%clk 0:10:09.1]} 9. Nbd2 {[%clk 0:08:48.5]} 9... Nbd7
{[%clk 0:09:59.6]} 10. b3 {[%clk 0:08:48.2]} 10... c5 {[%clk 0:10:00.1]} 11. Bb2
{[%clk 0:08:47.6]} 11... Be7 {[%clk 0:09:30.8]} 12. Rc1 {[%clk 0:08:37.7]} 12...
O-O {[%clk 0:09:28.6]} 13. dxc5 {[%clk 0:07:54.5]} 13... Bxc5 {[%clk 0:08:59]}
14. Ne5 {[%clk 0:07:00]} 14... Qe7 {[%clk 0:08:42.5]} 15. Bf3 {[%clk 0:06:47.9]}
15... Bxf3 {[%clk 0:07:14.7]} 16. Qxf3 {[%clk 0:06:46.6]} 16... Nxe5 {[%clk
0:07:10.3]} 17. Bxe5 {[%clk 0:06:48.5]} 17... Rac8 {[%clk 0:06:51.2]} 18. Bxf6
{[%clk 0:06:43.8]} 18... Qxf6 {[%clk 0:06:53.1]} 19. Qxf6 {[%clk 0:06:44]} 19...
gxf6 {[%clk 0:06:55]} 20. Rc2 {[%clk 0:06:14.7]} 20... Ba7 {[%clk 0:05:10.2]}
21. Rfc1 {[%clk 0:06:12.7]} 21... Rxc2 {[%clk 0:05:08.5]} 22. Rxc2 {[%clk
0:06:14.6]} 22... Rd8 {[%clk 0:05:06.2]} 23. Kf1 {[%clk 0:06:15]} 23... f5
{[%clk 0:04:46]} 24. Ke2 {[%clk 0:06:14.4]} 24... Bb8 {[%clk 0:04:43]} 25. Rc6
{[%clk 0:06:09.2]} 25... f4 {[%clk 0:04:19.1]} 26. Rxa6 {[%clk 0:05:37.1]} 26...
fxe3 {[%clk 0:04:19.4]} 27. fxe3 {[%clk 0:05:23.3]} 27... Bxh2 {[%clk
0:04:16.7]} 28. Rb6 {[%clk 0:05:24.4]} 28... Bd6 {[%clk 0:03:40]} 29. Nc4 {[%clk
0:05:24.3]} 29... Be7 {[%clk 0:03:39.5]} 30. a5 {[%clk 0:05:23.9]} 30... Kf8
{[%clk 0:03:17.5]} 31. a6 {[%clk 0:05:24.9]} 31... Ke8 {[%clk 0:03:06.8]} 32. a7
{[%clk 0:05:14.6]} 32... Bc5 {[%clk 0:03:07.9]} 33. Rb7 {[%clk 0:05:15.7]} 33...
h5 {[%clk 0:02:19.2]} 34. Nb6 {[%clk 0:05:03.6]} 34... Bxb6 {[%clk 0:02:05.7]}
35. Rxb6 {[%clk 0:05:05.5]} 35... Kd7 {[%clk 0:02:04.3]} 36. Rb8 {[%clk
0:05:05.1]} 1-0

[Event "GrandPrix_29.05"]
[Site "Chess.com"]
[Date "2020.05.29"]
[Round "1"]
[White "jafarlib"]
[Black "Todorovic1991"]
[Result "0-1"]
[WhiteElo "2168"]
[BlackElo "1467"]
[TimeControl "600+2"]
[EndTime "9:16:37 PDT"]
[Termination "Todorovic1991 won by resignation"]

1. e4 {[%clk 0:09:05.2]} 1... d6 {[%clk 0:09:59.2]} 2. d4 {[%clk 0:09:05.8]}
2... Nf6 {[%clk 0:09:59.5]} 3. Nc3 {[%clk 0:09:07.3]} 3... g6 {[%clk 0:10:00.4]}
4. Be3 {[%clk 0:09:07.7]} 4... c6 {[%clk 0:10:00.9]} 5. Qd2 {[%clk 0:09:07.6]}
5... b5 {[%clk 0:10:01.4]} 6. f3 {[%clk 0:09:08.6]} 6... Nbd7 {[%clk 0:10:01.4]}
7. O-O-O {[%clk 0:09:06.8]} 7... Bb7 {[%clk 0:10:01.9]} 8. g4 {[%clk 0:09:04]}
8... Nb6 {[%clk 0:09:51.1]} 9. Bd3 {[%clk 0:09:03.5]} 9... a6 {[%clk 0:09:48.5]}
10. Kb1 {[%clk 0:08:58.3]} 10... Nfd7 {[%clk 0:09:46.4]} 11. h4 {[%clk
0:08:53.6]} 11... h5 {[%clk 0:09:44.8]} 12. gxh5 {[%clk 0:08:51.5]} 12... Rxh5
{[%clk 0:09:44.2]} 13. Nce2 {[%clk 0:08:52.1]} 13... c5 {[%clk 0:09:42.7]} 14.
c3 {[%clk 0:08:47.3]} 14... e5 {[%clk 0:09:36.4]} 15. Ng3 {[%clk 0:08:28.7]}
15... Rh8 {[%clk 0:09:32.2]} 16. h5 {[%clk 0:08:24.1]} 16... gxh5 {[%clk
0:09:19.7]} 17. Nf5 {[%clk 0:08:20.1]} 17... Qc7 {[%clk 0:09:08.7]} 18. d5
{[%clk 0:07:51.8]} 18... c4 {[%clk 0:09:03.4]} 19. Bc2 {[%clk 0:07:50]} 19...
O-O-O {[%clk 0:09:04]} 20. Ne2 {[%clk 0:07:38.6]} 20... Nc5 {[%clk 0:09:03.7]}
21. Neg3 {[%clk 0:07:36.4]} 21... Kb8 {[%clk 0:08:54]} 22. Bg5 {[%clk
0:07:25.7]} 22... Re8 {[%clk 0:08:49]} 23. Nxh5 {[%clk 0:07:21.7]} 23... Rc8
{[%clk 0:08:22.8]} 24. f4 {[%clk 0:07:12.3]} 24... exf4 {[%clk 0:08:18.9]} 25.
Bxf4 {[%clk 0:07:09.1]} 25... Nbd7 {[%clk 0:08:16.5]} 26. Qd4 {[%clk 0:06:46.6]}
26... Ne5 {[%clk 0:08:06.7]} 27. Bxe5 {[%clk 0:06:39.2]} 27... dxe5 {[%clk
0:08:07.1]} 28. Qe3 {[%clk 0:06:40]} 28... Bd6 {[%clk 0:07:58.5]} 29. Nhg7
{[%clk 0:06:33.1]} 29... Nd7 {[%clk 0:07:47.2]} 30. Nxd6 {[%clk 0:06:20.3]}
30... Qxd6 {[%clk 0:07:47.4]} 31. Nf5 {[%clk 0:06:22.2]} 31... Qc5 {[%clk
0:07:36.7]} 32. Qf3 {[%clk 0:06:12.7]} 32... b4 {[%clk 0:07:25.8]} 33. cxb4
{[%clk 0:06:05.2]} 33... Qxb4 {[%clk 0:07:26.2]} 34. a3 {[%clk 0:06:06.4]} 34...
Qb5 {[%clk 0:07:24.6]} 35. Qc3 {[%clk 0:06:06.5]} 35... f6 {[%clk 0:07:02.3]}
36. Nd6 {[%clk 0:06:05.4]} 36... Qb6 {[%clk 0:06:51.3]} 37. Nxc8 {[%clk
0:06:05.3]} 37... Rxc8 {[%clk 0:06:51.9]} 38. Rh7 {[%clk 0:06:01.1]} 38... Nc5
{[%clk 0:06:52.4]} 39. Qxc4 {[%clk 0:05:53.9]} 39... a5 {[%clk 0:06:52.7]} 40.
Qf1 {[%clk 0:05:47.5]} 40... Ba6 {[%clk 0:06:45.5]} 41. Qf5 {[%clk 0:05:43.9]}
41... Ka8 {[%clk 0:06:39.5]} 42. Ka1 {[%clk 0:04:41.3]} 42... Rb8 {[%clk
0:06:36.4]} 43. Rb1 {[%clk 0:04:40.6]} 43... Bd3 {[%clk 0:06:26.2]} 44. Bxd3
{[%clk 0:04:38.3]} 44... Nb3+ {[%clk 0:06:25.4]} 45. Ka2 {[%clk 0:04:37.7]}
45... Nc1+ {[%clk 0:06:26.3]} 46. Ka1 {[%clk 0:04:37.6]} 46... Qb3 {[%clk
0:05:50.6]} 47. Bc4 {[%clk 0:02:49.5]} 47... Qxc4 {[%clk 0:05:48.5]} 48. b3
{[%clk 0:02:50.7]} 48... Qc3+ {[%clk 0:05:30.4]} 49. Rb2 {[%clk 0:02:46]} 49...
Nxb3+ {[%clk 0:05:30.7]} 0-1

[Event "GrandPrix_29.05"]
[Site "Chess.com"]
[Date "2020.05.29"]
[Round "1"]
[White "cantdefyme"]
[Black "Micki-taryan"]
[Result "0-1"]
[WhiteElo "2079"]
[BlackElo "2507"]
[TimeControl "600+2"]
[EndTime "9:17:21 PDT"]
[Termination "Micki-taryan won by resignation"]

1. e4 {[%clk 0:09:59.7]} 1... c5 {[%clk 0:09:59.8]} 2. Nf3 {[%clk 0:10:00.2]}
2... Nc6 {[%clk 0:10:00.2]} 3. d4 {[%clk 0:10:00.9]} 3... cxd4 {[%clk
0:10:02.1]} 4. Nxd4 {[%clk 0:10:01.7]} 4... e5 {[%clk 0:10:03.7]} 5. Nb5 {[%clk
0:10:01.6]} 5... d6 {[%clk 0:10:03.7]} 6. c4 {[%clk 0:10:02.3]} 6... Be7 {[%clk
0:10:03.5]} 7. N5c3 {[%clk 0:10:03.3]} 7... Nf6 {[%clk 0:10:02.4]} 8. Be2 {[%clk
0:10:02.6]} 8... O-O {[%clk 0:09:58.4]} 9. O-O {[%clk 0:10:01.7]} 9... Be6
{[%clk 0:09:49.5]} 10. Be3 {[%clk 0:09:57.8]} 10... Nd7 {[%clk 0:09:39.4]} 11.
Nd5 {[%clk 0:07:58.8]} 11... f5 {[%clk 0:09:12.8]} 12. exf5 {[%clk 0:07:43.1]}
12... Bxf5 {[%clk 0:09:14.7]} 13. Nbc3 {[%clk 0:07:40.5]} 13... Nf6 {[%clk
0:08:52.6]} 14. Nxf6+ {[%clk 0:06:39.2]} 14... gxf6 {[%clk 0:08:35.2]} 15. Bd3
{[%clk 0:06:36.8]} 15... Bxd3 {[%clk 0:08:21]} 16. Qxd3 {[%clk 0:06:38.7]} 16...
f5 {[%clk 0:08:22.9]} 17. f3 {[%clk 0:05:06.8]} 17... Kh8 {[%clk 0:08:02.9]} 18.
Nd5 {[%clk 0:04:53.7]} 18... Rf7 {[%clk 0:07:57.2]} 19. Rad1 {[%clk 0:04:51.3]}
19... Bf8 {[%clk 0:07:58.6]} 20. Kh1 {[%clk 0:04:02.4]} 20... Qh4 {[%clk
0:07:53]} 21. Bf2 {[%clk 0:03:53.2]} 21... Qh5 {[%clk 0:07:54]} 22. Be1 {[%clk
0:01:33.4]} 22... Re8 {[%clk 0:07:46.3]} 23. Bc3 {[%clk 0:01:20.8]} 23... Re6
{[%clk 0:07:13.2]} 24. Nf4 {[%clk 0:01:19.3]} 24... Qh6 {[%clk 0:06:56.8]} 25.
Nxe6 {[%clk 0:01:19.9]} 25... Qxe6 {[%clk 0:06:58.7]} 26. Qd5 {[%clk 0:01:17.8]}
26... Qg6 {[%clk 0:06:53.8]} 27. f4 {[%clk 0:01:03]} 27... Rg7 {[%clk
0:06:13.5]} 28. fxe5 {[%clk 0:01:02.2]} 28... dxe5 {[%clk 0:06:14.5]} 29. Rd3
{[%clk 0:00:06]} 29... Ne7 {[%clk 0:06:01.1]} 30. Qxb7 {[%clk 0:00:06.3]} 30...
Nc6 {[%clk 0:06:02.1]} 31. Rg3 {[%clk 0:00:04.5]} 31... Rxb7 {[%clk 0:06:01.6]}
32. Rxg6 {[%clk 0:00:05]} 32... hxg6 {[%clk 0:06:03.5]} 0-1

[Event "GrandPrix_29.05"]
[Site "Chess.com"]
[Date "2020.05.29"]
[Round "1"]
[White "DinaBelenkaya"]
[Black "AmilAbbasov"]
[Result "1-0"]
[WhiteElo "1549"]
[BlackElo "2209"]
[TimeControl "600+2"]
[EndTime "9:17:24 PDT"]
[Termination "DinaBelenkaya won by resignation"]

1. e4 {[%clk 0:09:56.2]} 1... c5 {[%clk 0:09:15]} 2. Nc3 {[%clk 0:09:52.9]} 2...
Nc6 {[%clk 0:08:51.4]} 3. g3 {[%clk 0:09:50.4]} 3... g6 {[%clk 0:08:05.5]} 4.
Bg2 {[%clk 0:09:49.8]} 4... Bg7 {[%clk 0:07:55.3]} 5. Nge2 {[%clk 0:09:38.4]}
5... d6 {[%clk 0:07:54.9]} 6. d3 {[%clk 0:09:34.2]} 6... e5 {[%clk 0:07:50.9]}
7. Nd5 {[%clk 0:08:48.7]} 7... Nge7 {[%clk 0:07:50.9]} 8. Bg5 {[%clk 0:08:25.6]}
8... O-O {[%clk 0:07:48.2]} 9. Qd2 {[%clk 0:07:41.6]} 9... f6 {[%clk 0:07:40.5]}
10. Bh6 {[%clk 0:07:22.9]} 10... Be6 {[%clk 0:07:40.5]} 11. h4 {[%clk
0:06:56.9]} 11... Nd4 {[%clk 0:07:30.8]} 12. Bxg7 {[%clk 0:06:31.7]} 12... Kxg7
{[%clk 0:07:30.9]} 13. h5 {[%clk 0:06:32.5]} 13... g5 {[%clk 0:07:27.3]} 14. h6+
{[%clk 0:06:23.5]} 14... Kh8 {[%clk 0:07:19.8]} 15. f4 {[%clk 0:05:20.2]} 15...
exf4 {[%clk 0:07:04.4]} 16. gxf4 {[%clk 0:05:20]} 16... Nxd5 {[%clk 0:07:04.6]}
17. exd5 {[%clk 0:05:17.9]} 17... Bg4 {[%clk 0:07:05.3]} 18. Nxd4 {[%clk
0:04:15.3]} 18... cxd4 {[%clk 0:07:07.2]} 19. O-O {[%clk 0:04:13.4]} 19... gxf4
{[%clk 0:05:09]} 20. Qxf4 {[%clk 0:04:12.5]} 20... f5 {[%clk 0:05:03.7]} 21.
Rae1 {[%clk 0:03:53.6]} 21... Rf6 {[%clk 0:02:12.4]} 22. Re6 {[%clk 0:03:42.9]}
22... Rxe6 {[%clk 0:01:53.2]} 23. dxe6 {[%clk 0:03:44.8]} 23... Qf6 {[%clk
0:01:54.3]} 24. Qxg4 {[%clk 0:03:31]} 1-0

[Event "GrandPrix_29.05"]
[Site "Chess.com"]
[Date "2020.05.29"]
[Round "1"]
[White "VMikhalevski"]
[Black "Arasvard"]
[Result "1-0"]
[WhiteElo "2608"]
[BlackElo "2139"]
[TimeControl "600+2"]
[EndTime "9:17:28 PDT"]
[Termination "VMikhalevski won by resignation"]

1. Nf3 {[%clk 0:09:59.7]} 1... Nf6 {[%clk 0:09:58.7]} 2. g3 {[%clk 0:09:58.7]}
2... g6 {[%clk 0:09:58.8]} 3. Bg2 {[%clk 0:09:57.9]} 3... Bg7 {[%clk 0:10:00]}
4. d4 {[%clk 0:09:55.8]} 4... O-O {[%clk 0:10:00.4]} 5. O-O {[%clk 0:09:54.8]}
5... d6 {[%clk 0:09:56.8]} 6. b3 {[%clk 0:09:54.4]} 6... c5 {[%clk 0:09:53.3]}
7. Bb2 {[%clk 0:09:44.5]} 7... Ne4 {[%clk 0:09:38.4]} 8. Qc1 {[%clk 0:09:11.6]}
8... cxd4 {[%clk 0:08:18.2]} 9. Nxd4 {[%clk 0:09:09.4]} 9... f5 {[%clk 0:07:41]}
10. c4 {[%clk 0:08:38.8]} 10... Nc6 {[%clk 0:07:16.4]} 11. Nxc6 {[%clk
0:08:17.2]} 11... bxc6 {[%clk 0:07:17]} 12. Bxg7 {[%clk 0:08:16.3]} 12... Kxg7
{[%clk 0:07:18.9]} 13. Nc3 {[%clk 0:08:17]} 13... d5 {[%clk 0:05:32.9]} 14. Rd1
{[%clk 0:07:49.1]} 14... Qb6 {[%clk 0:04:39.1]} 15. e3 {[%clk 0:07:27.6]} 15...
e6 {[%clk 0:03:57.8]} 16. Qb2 {[%clk 0:06:33.2]} 16... Kg8 {[%clk 0:03:49.3]}
17. Rac1 {[%clk 0:06:28]} 17... Bd7 {[%clk 0:03:37.4]} 18. Bxe4 {[%clk
0:05:28.6]} 18... fxe4 {[%clk 0:03:36.6]} 19. Nxe4 {[%clk 0:05:28.9]} 19... Qd8
{[%clk 0:03:25]} 20. Nc5 {[%clk 0:05:25.7]} 20... Bc8 {[%clk 0:03:16.6]} 21. e4
{[%clk 0:05:06.6]} 21... Qg5 {[%clk 0:02:49]} 22. cxd5 {[%clk 0:03:44.8]} 22...
exd5 {[%clk 0:02:49]} 23. exd5 {[%clk 0:03:45.5]} 23... cxd5 {[%clk 0:02:30.3]}
24. Qd4 {[%clk 0:03:44.1]} 24... Rf5 {[%clk 0:02:01.3]} 25. Re1 {[%clk
0:03:34.1]} 1-0

[Event "GrandPrix_29.05"]
[Site "Chess.com"]
[Date "2020.05.29"]
[Round "1"]
[White "Lion_DL"]
[Black "Arm-Akiba"]
[Result "0-1"]
[WhiteElo "2149"]
[BlackElo "2742"]
[TimeControl "600+2"]
[EndTime "9:17:40 PDT"]
[Termination "Arm-Akiba won by resignation"]

1. e4 {[%clk 0:10:00.5]} 1... e5 {[%clk 0:09:59.2]} 2. f4 {[%clk 0:10:00.9]}
2... d5 {[%clk 0:09:58]} 3. exd5 {[%clk 0:10:01.3]} 3... exf4 {[%clk 0:09:58.8]}
4. Nf3 {[%clk 0:10:02.2]} 4... Nf6 {[%clk 0:09:58.4]} 5. Bc4 {[%clk 0:10:03.2]}
5... Bd6 {[%clk 0:09:55]} 6. O-O {[%clk 0:10:02.6]} 6... O-O {[%clk 0:09:54.2]}
7. d4 {[%clk 0:10:01.4]} 7... Bg4 {[%clk 0:09:51]} 8. Bb3 {[%clk 0:09:47.7]}
8... c6 {[%clk 0:09:32.5]} 9. dxc6 {[%clk 0:09:20.4]} 9... Nxc6 {[%clk
0:09:33.3]} 10. c3 {[%clk 0:09:21.9]} 10... Re8 {[%clk 0:09:23.9]} 11. Na3
{[%clk 0:06:36.5]} 11... Bxa3 {[%clk 0:08:37.2]} 12. bxa3 {[%clk 0:06:36.2]}
12... Nd5 {[%clk 0:08:38.4]} 13. Bxd5 {[%clk 0:06:30.3]} 13... Qxd5 {[%clk
0:08:40.3]} 14. Bxf4 {[%clk 0:06:31]} 14... Na5 {[%clk 0:08:40.3]} 15. Qa4
{[%clk 0:05:40.7]} 15... Re2 {[%clk 0:08:02.4]} 16. Rae1 {[%clk 0:05:15.5]}
16... Bxf3 {[%clk 0:07:26]} 17. gxf3 {[%clk 0:05:16.7]} 17... Re6 {[%clk
0:07:20.5]} 18. Rxe6 {[%clk 0:05:13.3]} 18... fxe6 {[%clk 0:07:22.4]} 19. Be5
{[%clk 0:04:28.5]} 19... Nc4 {[%clk 0:07:16.2]} 20. Qb4 {[%clk 0:03:18.9]} 20...
Re8 {[%clk 0:07:04.4]} 21. Rf2 {[%clk 0:02:37.1]} 21... b6 {[%clk 0:06:46.4]}
22. Qa4 {[%clk 0:01:26.8]} 22... Re7 {[%clk 0:06:40.4]} 23. Bf4 {[%clk
0:01:08.4]} 23... b5 {[%clk 0:06:18.4]} 24. Qa6 {[%clk 0:01:07.3]} 24... Qb7
{[%clk 0:06:17.8]} 25. Qxb7 {[%clk 0:01:01.2]} 25... Rxb7 {[%clk 0:06:19.7]} 26.
Bc1 {[%clk 0:00:43.4]} 26... Nb6 {[%clk 0:06:19.9]} 27. Re2 {[%clk 0:00:41.2]}
27... Kf7 {[%clk 0:06:16.7]} 28. Re5 {[%clk 0:00:41.4]} 28... Nd5 {[%clk
0:06:17.8]} 29. Bd2 {[%clk 0:00:41.2]} 29... Rc7 {[%clk 0:06:09.7]} 30. Kf2
{[%clk 0:00:37]} 30... Rc4 {[%clk 0:06:08.9]} 31. f4 {[%clk 0:00:32.6]} 31... g6
{[%clk 0:06:09]} 32. h4 {[%clk 0:00:33.4]} 32... Ra4 {[%clk 0:06:09.4]} 33. h5
{[%clk 0:00:34.1]} 33... Rxa3 {[%clk 0:06:08.2]} 34. hxg6+ {[%clk 0:00:34.7]}
34... hxg6 {[%clk 0:06:09.4]} 35. Kf3 {[%clk 0:00:18]} 35... Rxa2 {[%clk
0:06:01.1]} 36. Be1 {[%clk 0:00:19.5]} 36... a5 {[%clk 0:05:57.5]} 0-1

[Event "GrandPrix_29.05"]
[Site "Chess.com"]
[Date "2020.05.29"]
[Round "1"]
[White "Haykos"]
[Black "kpio91"]
[Result "0-1"]
[WhiteElo "2177"]
[BlackElo "2666"]
[TimeControl "600+2"]
[EndTime "9:17:53 PDT"]
[Termination "kpio91 won by checkmate"]

1. e4 {[%clk 0:09:44.3]} 1... c5 {[%clk 0:09:56.3]} 2. Nf3 {[%clk 0:09:35.6]}
2... d6 {[%clk 0:09:57]} 3. Bb5+ {[%clk 0:09:35]} 3... Nc6 {[%clk 0:09:53.4]} 4.
O-O {[%clk 0:09:30.9]} 4... Nf6 {[%clk 0:09:53.1]} 5. Re1 {[%clk 0:09:31.3]}
5... a6 {[%clk 0:09:53.9]} 6. Bxc6+ {[%clk 0:09:29.3]} 6... bxc6 {[%clk
0:09:54.7]} 7. h3 {[%clk 0:09:30.9]} 7... e5 {[%clk 0:09:54.5]} 8. c3 {[%clk
0:09:31.9]} 8... Be7 {[%clk 0:09:43.9]} 9. d4 {[%clk 0:09:19.3]} 9... cxd4
{[%clk 0:09:39.6]} 10. cxd4 {[%clk 0:09:16.2]} 10... Nd7 {[%clk 0:09:41.1]} 11.
Nc3 {[%clk 0:09:03.4]} 11... O-O {[%clk 0:09:40.4]} 12. dxe5 {[%clk 0:08:55.9]}
12... dxe5 {[%clk 0:09:39.9]} 13. b3 {[%clk 0:08:38.7]} 13... Qc7 {[%clk
0:09:27.8]} 14. Bb2 {[%clk 0:08:39.4]} 14... Nb6 {[%clk 0:07:54.1]} 15. Rc1
{[%clk 0:08:31.8]} 15... Qb8 {[%clk 0:07:17.5]} 16. Na4 {[%clk 0:06:15.2]} 16...
Nxa4 {[%clk 0:05:40.4]} 17. Bxe5 {[%clk 0:06:16.3]} 17... Qb6 {[%clk 0:05:41.1]}
18. bxa4 {[%clk 0:06:17.4]} 18... Be6 {[%clk 0:05:42.1]} 19. Qc2 {[%clk
0:05:43]} 19... c5 {[%clk 0:05:29.5]} 20. Rb1 {[%clk 0:05:18.4]} 20... Qc6
{[%clk 0:05:12.7]} 21. Nd4 {[%clk 0:05:18.3]} 21... Qd7 {[%clk 0:05:10.5]} 22.
Nxe6 {[%clk 0:05:15.6]} 22... Qxe6 {[%clk 0:05:11.4]} 23. f4 {[%clk 0:05:06.1]}
23... c4 {[%clk 0:05:07.3]} 24. Qc3 {[%clk 0:04:58.8]} 24... f6 {[%clk
0:04:22.7]} 25. Bd4 {[%clk 0:04:58.5]} 25... Rab8 {[%clk 0:04:23.8]} 26. f5
{[%clk 0:04:32.8]} 26... Qc6 {[%clk 0:04:16.4]} 27. e5 {[%clk 0:04:27]} 27...
Rxb1 {[%clk 0:03:44.9]} 28. Rxb1 {[%clk 0:04:28.9]} 28... fxe5 {[%clk
0:03:00.8]} 29. Bxe5 {[%clk 0:04:28.1]} 29... Rxf5 {[%clk 0:02:53.8]} 30. a5
{[%clk 0:03:22.2]} 30... Bc5+ {[%clk 0:02:40.1]} 31. Kh1 {[%clk 0:03:16.3]}
31... Qe4 {[%clk 0:02:26.1]} 32. Bg3 {[%clk 0:03:08.5]} 32... Qxb1+ {[%clk
0:02:26.1]} 33. Kh2 {[%clk 0:03:08.6]} 33... Qg1# {[%clk 0:02:25.5]} 0-1

[Event "GrandPrix_29.05"]
[Site "Chess.com"]
[Date "2020.05.29"]
[Round "1"]
[White "lelajavakhishvili"]
[Black "gross-aleks"]
[Result "1-0"]
[WhiteElo "2550"]
[BlackElo "2084"]
[TimeControl "600+2"]
[EndTime "9:17:56 PDT"]
[Termination "lelajavakhishvili won by resignation"]

1. d4 {[%clk 0:09:59.7]} 1... Nf6 {[%clk 0:09:59.8]} 2. c4 {[%clk 0:09:59.8]}
2... e6 {[%clk 0:10:00.6]} 3. Nf3 {[%clk 0:09:59.8]} 3... b6 {[%clk 0:10:01.2]}
4. g3 {[%clk 0:09:58.7]} 4... Ba6 {[%clk 0:10:02.3]} 5. b3 {[%clk 0:09:58]} 5...
d5 {[%clk 0:10:01.7]} 6. cxd5 {[%clk 0:09:58.1]} 6... exd5 {[%clk 0:10:01.3]} 7.
Bg2 {[%clk 0:09:59.1]} 7... Bb4+ {[%clk 0:10:01.7]} 8. Bd2 {[%clk 0:09:59.2]}
8... Be7 {[%clk 0:10:00.6]} 9. O-O {[%clk 0:09:59.4]} 9... Ne4 {[%clk
0:09:59.1]} 10. Nc3 {[%clk 0:09:13.9]} 10... Nxd2 {[%clk 0:09:53.6]} 11. Qxd2
{[%clk 0:09:14.4]} 11... c6 {[%clk 0:09:41.1]} 12. Ne5 {[%clk 0:09:09.7]} 12...
O-O {[%clk 0:09:07.9]} 13. a3 {[%clk 0:08:54]} 13... Qd6 {[%clk 0:08:25.8]} 14.
Rfc1 {[%clk 0:08:34.4]} 14... Bb7 {[%clk 0:07:40.9]} 15. e4 {[%clk 0:07:36]}
15... Nd7 {[%clk 0:07:25.8]} 16. exd5 {[%clk 0:07:26.7]} 16... Nxe5 {[%clk
0:05:06.2]} 17. dxe5 {[%clk 0:07:23.8]} 17... Qxe5 {[%clk 0:05:08.1]} 18. dxc6
{[%clk 0:07:16.4]} 18... Ba6 {[%clk 0:04:07.8]} 19. Re1 {[%clk 0:06:57.2]} 19...
Qg5 {[%clk 0:03:45.1]} 20. Qxg5 {[%clk 0:06:16.2]} 20... Bxg5 {[%clk 0:03:44.3]}
21. Nd5 {[%clk 0:06:11.4]} 21... Rad8 {[%clk 0:01:52.9]} 22. h4 {[%clk
0:05:54.5]} 22... Bh6 {[%clk 0:00:35]} 23. Rad1 {[%clk 0:05:28.7]} 23... Bc8
{[%clk 0:00:33.7]} 24. c7 {[%clk 0:05:11.1]} 24... Rd7 {[%clk 0:00:31.9]} 25.
Ne7+ {[%clk 0:04:54.4]} 25... Kh8 {[%clk 0:00:18.2]} 26. Rxd7 {[%clk 0:04:52.2]}
26... Bxd7 {[%clk 0:00:20.1]} 27. Rd1 {[%clk 0:04:49.2]} 1-0

[Event "GrandPrix_29.05"]
[Site "Chess.com"]
[Date "2020.05.29"]
[Round "1"]
[White "szachuspl"]
[Black "bratkoo"]
[Result "0-1"]
[WhiteElo "2277"]
[BlackElo "2326"]
[TimeControl "600+2"]
[EndTime "9:18:00 PDT"]
[Termination "bratkoo won by resignation"]

1. d4 {[%clk 0:09:56.8]} 1... e6 {[%clk 0:09:59.9]} 2. c4 {[%clk 0:09:56.5]}
2... d5 {[%clk 0:10:00.5]} 3. Nc3 {[%clk 0:09:53.2]} 3... c6 {[%clk 0:10:01.3]}
4. e4 {[%clk 0:09:51.1]} 4... dxe4 {[%clk 0:09:57.7]} 5. Nxe4 {[%clk 0:09:51.6]}
5... Bb4+ {[%clk 0:09:59.4]} 6. Bd2 {[%clk 0:09:51.9]} 6... Qxd4 {[%clk
0:10:00.4]} 7. Bxb4 {[%clk 0:09:52.9]} 7... Qxe4+ {[%clk 0:10:02]} 8. Be2 {[%clk
0:09:45]} 8... Na6 {[%clk 0:10:03.1]} 9. Bf8 {[%clk 0:09:41.3]} 9... Ne7 {[%clk
0:10:00.9]} 10. Bxg7 {[%clk 0:09:21.9]} 10... Qxg2 {[%clk 0:09:57.2]} 11. Bxh8
{[%clk 0:09:14.9]} 11... Qxh1 {[%clk 0:09:58.2]} 12. Kf1 {[%clk 0:09:07.5]}
12... e5 {[%clk 0:09:44.3]} 13. Bg4 {[%clk 0:08:54.9]} 13... Qe4 {[%clk
0:09:41.3]} 14. Be2 {[%clk 0:08:18.8]} 14... Be6 {[%clk 0:09:31.5]} 15. Bf6
{[%clk 0:07:45.7]} 15... Bxc4 {[%clk 0:09:17.3]} 16. Qd6 {[%clk 0:07:33.6]}
16... Bxe2+ {[%clk 0:08:38.4]} 17. Nxe2 {[%clk 0:07:33.7]} 17... Nd5 {[%clk
0:07:58.9]} 18. Rd1 {[%clk 0:06:49.4]} 18... Nac7 {[%clk 0:07:36]} 19. Ng3
{[%clk 0:06:21.5]} 19... Qf3 {[%clk 0:07:15.7]} 20. Qxe5+ {[%clk 0:06:03.6]}
20... Ne6 {[%clk 0:07:15.1]} 21. Rxd5 {[%clk 0:05:11]} 21... Qxd5 {[%clk
0:07:08.4]} 22. Qe3 {[%clk 0:05:01.9]} 22... Kd7 {[%clk 0:06:51.2]} 23. Ne4
{[%clk 0:04:39.1]} 23... Qd1+ {[%clk 0:06:23]} 24. Kg2 {[%clk 0:04:36.3]} 24...
Rg8+ {[%clk 0:06:23.3]} 25. Ng3 {[%clk 0:04:34.3]} 25... Qd5+ {[%clk 0:06:18]}
26. f3 {[%clk 0:04:35.4]} 26... Kc8 {[%clk 0:05:54.5]} 27. Bc3 {[%clk
0:03:43.6]} 27... b6 {[%clk 0:04:53.1]} 28. a3 {[%clk 0:03:30.5]} 28... f5
{[%clk 0:04:53.5]} 29. Qh6 {[%clk 0:02:53.7]} 29... Rg6 {[%clk 0:04:45.6]} 30.
Qxh7 {[%clk 0:02:47.7]} 30... Nf4+ {[%clk 0:04:46.4]} 31. Kf2 {[%clk 0:02:37.4]}
31... Qc5+ {[%clk 0:04:35.9]} 32. Kf1 {[%clk 0:02:30.1]} 32... Qe3 {[%clk
0:04:33.2]} 33. Qh8+ {[%clk 0:01:29.2]} 33... Kb7 {[%clk 0:04:33.3]} 34. Qd4
{[%clk 0:01:14.4]} 34... Qxf3+ {[%clk 0:04:33.7]} 35. Qf2 {[%clk 0:01:14.5]}
35... Qd3+ {[%clk 0:04:32.3]} 0-1